bitfinex/quotes_BTCUSD_20250623
["timestamp","ask_amount","ask_price","bid_price","bid_amount"]
[1750716922569,0.09596603,105450.0,105410.0,0.19919603]
[1750716922815,0.22204,105440.0,105410.0,0.22765496]
[1750716923042,0.09550186,105430.0,105400.0,0.28460429]
[1750716923269,0.09550186,105430.0,105400.0,0.31306628]
[1750716923489,0.09550186,105430.0,105410.0,0.20870601]
[1750716923712,0.09550186,105430.0,105400.0,0.30357898]
[1750716923938,0.08456,105420.0,105390.0,0.18968451]
[1750716924152,0.09550186,105410.0,105380.0,0.19921151]
[1750716924398,0.31750186,105410.0,105380.0,0.20870133]
[1750716924625,0.31750186,105410.0,105370.0,0.21823]
[1750716924848,0.31750186,105410.0,105400.0,0.003]
[1750716925069,0.31750186,105410.0,105400.0,0.006]
[1750716925338,0.31750186,105410.0,105400.0,0.003]
[1750716925561,0.0325,105400.0,105380.0,0.001]
[1750716925776,0.31742186,105390.0,105380.0,0.00213919]
[1750716926462,0.31742186,105390.0,105380.0,0.00013919]
[1750716926915,0.34902186,105390.0,105380.0,0.00013919]
[1750716927368,6.24075833,105390.0,105380.0,0.00013919]
[1750716927596,0.09550186,105390.0,105380.0,0.18992852]
[1750716927852,0.30644,105400.0,105380.0,0.21390699]
[1750716928080,0.30644,105400.0,105380.0,0.00962865]
[1750716928081,0.09550186,105390.0,105380.0,0.00962865]
[1750716928304,0.09550186,105390.0,105380.0,0.22888519]
[1750716928523,0.09550186,105390.0,105380.0,0.00213919]
[1750716928750,0.09550186,105390.0,105380.0,0.00113919]
[1750716928977,0.09550186,105390.0,105380.0,0.00313919]
[1750716929223,0.09550186,105390.0,105380.0,0.00613919]
[1750716929463,5.10008905,105390.0,105380.0,0.00613919]
[1750716929902,5.1146299,105390.0,105380.0,0.00613919]
[1750716930127,5.05989486,105390.0,105380.0,0.00613919]
[1750716930383,5.05989486,105390.0,105340.0,0.0002]
[1750716930384,0.01454085,105380.0,105340.0,0.0002]
[1750716930601,0.01454085,105380.0,105340.0,0.00033883]
[1750716930602,0.12780186,105370.0,105340.0,0.00033883]
[1750716930821,0.1173,105360.0,105340.0,0.00033883]
[1750716931044,0.31730186,105350.0,105340.0,0.00033883]
[1750716931267,0.0327,105390.0,105350.0,0.21831868]
[1750716931492,0.43456186,105380.0,105340.0,0.20918045]
[1750716931719,4.899393,105370.0,105340.0,0.00033883]
[1750716931935,0.31726186,105360.0,105340.0,0.00033883]
[1750716932157,0.31726186,105360.0,105340.0,0.22367622]
[1750716932378,0.09550186,105360.0,105340.0,0.19969091]
[1750716932603,0.40186186,105360.0,105340.0,0.21867604]
[1750716932829,0.40182186,105360.0,105340.0,0.00033883]
[1750716933126,0.40182186,105360.0,105340.0,0.19969258]
[1750716933346,0.30632,105360.0,105350.0,0.22781075]
[1750716933566,0.40182186,105360.0,105340.0,0.00033883]
[1750716933777,0.09550186,105350.0,105340.0,0.00033883]
[1750716934214,0.09550186,105350.0,105340.0,0.0088694]
[1750716934881,0.09550186,105350.0,105340.0,0.0118694]
[1750716935111,0.30632,105360.0,105340.0,0.21322368]
[1750716935341,0.09130186,105350.0,105340.0,0.0138694]
[1750716936241,0.09130186,105350.0,105340.0,0.01389903]
[1750716936461,0.09130186,105350.0,105340.0,0.01392218]
[1750716936953,1.06791364,105380.0,105350.0,0.18984337]
[1750716936954,0.400042,105380.0,105350.0,0.18984337]
[1750716937172,0.400042,105380.0,105340.0,0.0148318]
[1750716937173,0.40170186,105370.0,105340.0,0.0148318]
[1750716937393,0.40170186,105370.0,105340.0,0.22167853]
[1750716937611,0.40170186,105370.0,105340.0,0.00333883]
[1750716937834,0.46500186,105370.0,105340.0,0.0138318]
[1750716938056,0.46500186,105370.0,105340.0,0.20369131]
[1750716938331,0.40170186,105370.0,105340.0,0.2091841]
[1750716938550,0.40170186,105370.0,105340.0,0.00033883]
[1750716938766,0.43170186,105370.0,105340.0,0.00892738]
[1750716939007,0.0329,105360.0,105340.0,0.00892738]
[1750716939225,0.31702186,105350.0,105340.0,0.00892738]
[1750716940170,0.059343,105380.0,105340.0,0.03740576]
[1750716940398,0.55079762,105360.0,105340.0,0.00892738]
[1750716940615,0.31698186,105350.0,105340.0,0.01392738]
[1750716941106,0.31698186,105350.0,105340.0,0.01292738]
[1750716941329,0.31698186,105350.0,105340.0,0.00892738]
[1750716941330,0.86777948,105350.0,105340.0,0.00892738]
[1750716941554,0.34778186,105350.0,105340.0,0.00892738]
[1750716941783,0.89857948,105350.0,105340.0,0.01092738]
[1750716942002,0.89857948,105350.0,105340.0,0.00892738]
[1750716942236,0.34778186,105350.0,105340.0,0.01192738]
[1750716942460,0.37968186,105350.0,105340.0,0.01192738]
[1750716942674,0.93047948,105350.0,105340.0,0.01192738]
[1750716943129,0.09550186,105350.0,105340.0,0.01192738]
[1750716943395,0.22136,105360.0,105340.0,0.20578878]
[1750716943590,0.64629948,105350.0,105340.0,0.01592738]
[1750716943815,0.09550186,105350.0,105340.0,0.01592738]
[1750716944248,0.09550186,105350.0,105340.0,0.21528166]
[1750716944470,0.22136,105360.0,105340.0,0.23426706]
[1750716944699,0.31686186,105360.0,105340.0,0.21528166]
[1750716944920,0.86765948,105360.0,105340.0,0.02542045]
[1750716945356,0.31686186,105360.0,105340.0,0.01292738]
[1750716945568,0.31686186,105360.0,105340.0,0.22177283]
[1750716945791,0.5846,105380.0,105360.0,0.20880725]
[1750716946010,0.5846,105380.0,105360.0,0.00858855]
[1750716946011,0.40138186,105380.0,105360.0,0.00858855]
[1750716946678,0.18010186,105380.0,105360.0,0.22778774]
[1750716946901,0.0846,105380.0,105370.0,0.21827734]
[1750716947433,4.899393,105410.0,105390.0,0.1897713]
[1750716947664,0.334289,105410.0,105400.0,0.18975332]
[1750716947888,0.0846,105410.0,105400.0,0.20872837]
[1750716948116,0.0846,105410.0,105400.0,0.21821585]
[1750716948780,0.08473914,105410.0,105390.0,0.1992592]
[1750716949007,0.09550186,105400.0,105370.0,0.18980734]
[1750716949224,0.08473914,105410.0,105400.0,0.18975332]
[1750716949475,0.08473914,105410.0,105400.0,0.21821558]
[1750716949476,0.00013914,105410.0,105400.0,0.21821558]
[1750716949714,0.64643862,105410.0,105390.0,0.2087435]
[1750716950002,0.096641,105410.0,105400.0,0.19924089]
[1750716950231,0.096641,105410.0,105390.0,0.20874377]
[1750716950470,0.09550186,105400.0,105380.0,0.19927824]
[1750716950690,0.09550186,105400.0,105370.0,0.20878698]
[1750716950907,0.31650186,105400.0,105380.0,0.18978875]
[1750716951124,0.31650186,105400.0,105380.0,0.2087674]
[1750716951370,0.55079762,105390.0,105350.0,0.01898387]
[1750716951589,0.31646186,105380.0,105370.0,0.00949036]
[1750716951804,0.40018186,105390.0,105360.0,0.2088025]
[1750716952014,0.40018186,105390.0,105370.0,0.19929599]
[1750716952231,0.40018186,105390.0,105360.0,0.21829259]
[1750716952440,0.40018186,105390.0,105370.0,0.199297]
[1750716952656,0.17922186,105390.0,105380.0,0.20876816]
[1750716952875,0.03043914,105410.0,105380.0,0.22774591]
[1750716953093,0.31642186,105400.0,105390.0,0.00948838]
[1750716953312,0.22092,105400.0,105390.0,0.00948847]
[1750716953524,0.22092,105400.0,105390.0,0.00948856]
[1750716953964,0.22092,105400.0,105380.0,0.20876762]
[1750716954185,0.22092,105400.0,105390.0,0.002]
[1750716954398,0.31642186,105400.0,105390.0,0.005]
[1750716955562,0.94563011,105400.0,105360.0,0.19931505]
[1750716955784,0.09550186,105400.0,105370.0,0.22776483]
[1750716956003,0.22076,105390.0,105380.0,0.002]
[1750716956257,0.39994186,105400.0,105380.0,0.20127822]
[1750716956483,0.09550186,105390.0,105370.0,0.19929537]
[1750716956708,0.09550186,105390.0,105370.0,0.19929714]
[1750716956920,0.09550186,105390.0,105370.0,0.20029714]
[1750716957143,0.09550186,105390.0,105370.0,0.21827557]
[1750716957363,0.30444,105400.0,105380.0,0.19927861]
[1750716957572,0.39994186,105400.0,105380.0,0.22125681]
[1750716957790,0.09550186,105400.0,105380.0,0.23074492]
[1750716958012,0.39986186,105400.0,105390.0,0.20874799]
[1750716958238,0.39986186,105400.0,105380.0,0.21076708]
[1750716958463,0.00013914,105410.0,105390.0,0.19925988]
[1750716958688,0.400001,105410.0,105390.0,0.22772466]
[1750716958947,0.399961,105410.0,105390.0,0.21823664]
[1750716959168,0.399961,105410.0,105390.0,0.20874835]
[1750716959396,0.399961,105410.0,105390.0,0.2087475]
[1750716959614,0.399961,105410.0,105380.0,0.218256]
[1750716960063,0.001,105400.0,105390.0,0.22772414]
[1750716960305,0.399881,105410.0,105390.0,0.19925972]
[1750716960525,0.09550186,105400.0,105370.0,0.20878691]
[1750716960749,5.73557062,105390.0,105340.0,0.22207217]
[1750716960967,0.75539732,105380.0,105340.0,0.21845073]
[1750716961190,0.22048,105370.0,105350.0,0.19933442]
[1750716961410,0.22048,105370.0,105340.0,0.0002]
[1750716961411,0.31598186,105370.0,105340.0,0.0002]
[1750716961630,0.64629948,105360.0,105340.0,0.00881151]
[1750716961850,0.22044,105350.0,105340.0,0.00881151]
[1750716962067,0.31594186,105350.0,105340.0,0.00881151]
[1750716962787,0.31594186,105350.0,105340.0,0.00895034]
[1750716963243,0.31594186,105350.0,105340.0,0.19881174]
[1750716963461,0.22036,105360.0,105350.0,0.21282432]
[1750716963684,0.09550186,105360.0,105350.0,0.00861151]
[1750716964159,0.56248,105370.0,105350.0,0.20794695]
[1750716964160,0.53208,105370.0,105350.0,0.20794695]
[1750716964378,0.32350186,105370.0,105350.0,0.01898405]
[1750716964594,0.62754186,105370.0,105350.0,0.01661392]
[1750716964816,0.09550186,105360.0,105350.0,0.21594945]
[1750716965013,0.09550186,105360.0,105350.0,0.02610608]
[1750716965275,0.12391238,105360.0,105350.0,0.01661392]
[1750716965498,0.12391238,105360.0,105350.0,0.02910599]
[1750716965719,0.12391238,105360.0,105350.0,0.02998405]
[1750716965942,0.228,105370.0,105360.0,0.20880725]
[1750716966176,0.14812,105400.0,105380.0,0.00948946]
[1750716966399,0.08372,105410.0,105400.0,0.00948766]
[1750716966624,0.08372,105410.0,105390.0,0.20874735]
[1750716966852,0.08372,105410.0,105400.0,0.00948748]
[1750716967074,0.08372,105410.0,105400.0,0.18975332]
[1750716967292,0.08372,105410.0,105400.0,0.21821522]
[1750716967511,0.08385914,105410.0,105400.0,0.21821522]
[1750716967746,0.00013914,105410.0,105400.0,0.21821531]
[1750716967976,0.00013914,105410.0,105400.0,0.23370234]
[1750716968864,0.00013914,105410.0,105400.0,0.006]
[1750716969132,0.315761,105410.0,105400.0,0.006]
[1750716969353,0.315761,105410.0,105400.0,0.007]
[1750716969809,5.83165162,105410.0,105400.0,0.007]
[1750716970037,5.84619247,105410.0,105400.0,0.007]
[1750716970259,0.61469762,105390.0,105350.0,0.21827128]
[1750716970448,0.43112186,105380.0,105350.0,0.22776362]
[1750716970926,0.39922186,105380.0,105360.0,0.208807]
[1750716971151,0.39922186,105380.0,105350.0,0.20877948]
[1750716971377,1.01271948,105380.0,105340.0,0.20900109]
[1750716971623,1.01271948,105380.0,105360.0,0.19931554]
[1750716971624,0.09550186,105380.0,105360.0,0.19931554]
[1750716971872,0.31542186,105380.0,105370.0,0.18980734]
[1750716972098,0.31542186,105380.0,105370.0,0.21827716]
[1750716972334,0.09550186,105380.0,105370.0,0.21827716]
[1750716972562,0.032534,105390.0,105380.0,0.22773964]
[1750716972789,0.22001914,105410.0,105400.0,0.19924098]
[1750716973014,0.00013914,105410.0,105400.0,0.2257027]
[1750716973673,0.00013914,105410.0,105400.0,0.2247027]
[1750716974372,0.00113914,105410.0,105400.0,0.2247027]
[1750716975520,0.00013914,105410.0,105400.0,0.2267027]
[1750716975750,0.00013914,105410.0,105400.0,0.35630456]
[1750716975972,0.00013914,105410.0,105400.0,0.90710218]
[1750716976203,0.00013914,105410.0,105400.0,0.35630456]
[1750716977141,0.00013914,105410.0,105400.0,0.90710218]
[1750716977367,0.00013914,105410.0,105400.0,0.93730218]
[1750716979217,0.00013914,105410.0,105400.0,0.93530218]
[1750716979447,0.00013914,105410.0,105400.0,0.43450456]
[1750716979664,0.00013914,105410.0,105400.0,0.98430218]
[1750716979884,0.00013914,105410.0,105400.0,0.99030218]
[1750716980332,0.00013914,105410.0,105400.0,1.33030218]
[1750716980562,0.00013914,105410.0,105400.0,1.60070218]
[1750716981023,0.0001,105440.0,105430.0,0.81125074]
[1750716981235,0.0001,105440.0,105430.0,1.1261526]
[1750716981236,0.00056388,105440.0,105430.0,1.1261526]
[1750716982166,0.00056388,105440.0,105430.0,0.18969932]
[1750716982387,0.00056388,105440.0,105430.0,0.22763781]
[1750716982607,0.00056388,105440.0,105430.0,0.23063781]
[1750716982826,0.00056388,105440.0,105430.0,0.19269932]
[1750716983046,0.00056388,105440.0,105430.0,0.22115312]
[1750716983274,0.00056388,105440.0,105430.0,0.23063754]
[1750716983715,0.00056388,105440.0,105430.0,0.19769932]
[1750716983940,0.00056388,105440.0,105430.0,0.008]
[1750716984160,0.00056388,105440.0,105430.0,0.01748496]
[1750716984379,0.00056388,105440.0,105430.0,0.008]
[1750716984625,0.00056388,105440.0,105420.0,0.20867346]
[1750716984845,0.07796172,105440.0,105420.0,0.23712897]
[1750716985307,0.71009948,105430.0,105400.0,0.18974917]
[1750716985547,0.69149546,105410.0,105390.0,0.18977058]
[1750716985800,0.2361997,105410.0,105380.0,0.19927668]
[1750716986035,0.0643,105380.0,105350.0,0.0002]
[1750716986273,0.15980186,105370.0,105350.0,0.0002]
[1750716986494,0.37884186,105370.0,105350.0,0.0002]
[1750716986741,0.37884186,105370.0,105350.0,0.20902426]
[1750716986994,0.37884186,105370.0,105350.0,0.0002]
[1750716987242,0.0313,105340.0,105330.0,0.0158187]
[1750716987470,0.15980186,105340.0,105330.0,0.21533123]
[1750716987692,0.12680186,105340.0,105330.0,0.01595784]
[1750716987916,0.18858301,105340.0,105330.0,0.0245434]
[1750716988362,0.40754301,105340.0,105330.0,0.0295434]
[1750716988586,0.40754301,105340.0,105330.0,0.0375434]
[1750716988820,0.95834063,105340.0,105330.0,0.02005125]
[1750716989042,0.40754301,105340.0,105330.0,0.01146569]
[1750716989283,0.02878115,105340.0,105330.0,0.02005329]
[1750716989527,0.02878115,105340.0,105330.0,0.02005178]
[1750716989753,0.12790186,105340.0,105330.0,0.01146569]
[1750716989973,0.12790186,105340.0,105330.0,0.00646569]
[1750716990194,0.15990186,105340.0,105330.0,0.00746569]
[1750716991081,0.1884493,105340.0,105330.0,0.00746569]
[1750716994164,0.02854744,105340.0,105330.0,0.026453]
[1750716994414,0.031,105360.0,105340.0,0.19935346]
[1750716994704,0.24968,105380.0,105350.0,0.19933553]
[1750716994939,0.09550186,105370.0,105350.0,0.2183194]
[1750716995157,0.09550186,105370.0,105340.0,0.20884625]
[1750716995381,0.12650186,105370.0,105350.0,0.19933512]
[1750716995616,0.12650186,105370.0,105340.0,0.19934924]
[1750716995617,0.28388,105360.0,105340.0,0.19934924]
[1750716995854,0.37738186,105360.0,105330.0,0.2258263]
[1750716996090,0.37738186,105360.0,105340.0,0.18986126]
[1750716996295,0.37738186,105360.0,105330.0,0.22582567]
[1750716996514,0.37738186,105360.0,105340.0,0.20884633]
[1750716996736,0.31418186,105360.0,105350.0,0.18984337]
[1750716996945,0.31418186,105360.0,105340.0,0.22690714]
[1750716997179,0.34202607,105360.0,105340.0,0.00856811]
[1750716997416,0.34202607,105360.0,105340.0,0.2079211]
[1750716997634,0.34202607,105360.0,105340.0,0.21741371]
[1750716997848,0.34202607,105360.0,105340.0,0.01806096]
[1750716998067,0.34202607,105360.0,105340.0,0.21741443]
[1750716998313,0.16140186,105350.0,105340.0,0.01156789]
[1750716998581,0.033,105320.0,105300.0,0.0002]
[1750716998822,0.96399348,105300.0,105290.0,0.00975106]
[1750716999050,5.88237928,105300.0,105290.0,0.00024922]
[1750716999280,0.4037,105300.0,105290.0,0.00071363]
[1750716999497,0.37768186,105300.0,105290.0,0.00071363]
[1750717000864,0.37495149,105300.0,105290.0,0.00071363]
[1750717001164,0.09750186,105300.0,105290.0,0.21915682]
[1750717001386,0.002,105300.0,105290.0,0.21915682]
[1750717001841,0.002,105300.0,105290.0,0.31465868]
[1750717002315,0.2184,105330.0,105300.0,0.18990983]
[1750717002316,0.10789784,105320.0,105300.0,0.18990983]
[1750717002540,0.78509732,105320.0,105290.0,0.22865023]
[1750717002761,0.21836,105310.0,105290.0,0.21915338]
[1750717003002,0.21836,105310.0,105290.0,0.22865023]
[1750717003241,0.21836,105310.0,105290.0,0.23814699]
[1750717003478,0.21836,105310.0,105290.0,0.21265635]
[1750717003698,0.31386186,105310.0,105290.0,0.00771363]
[1750717003935,0.31386186,105310.0,105290.0,0.00071363]
[1750717004168,0.07639784,105300.0,105290.0,0.00171363]
[1750717004396,0.07639784,105300.0,105290.0,0.00371363]
[1750717004620,0.1718997,105300.0,105290.0,0.00371363]
[1750717004873,0.2028997,105300.0,105290.0,0.00371363]
[1750717005107,0.5742997,105300.0,105290.0,0.00171363]
[1750717005333,1.12509732,105300.0,105290.0,0.00171363]
[1750717005565,0.5742997,105300.0,105290.0,0.00171363]
[1750717005799,6.32537032,105300.0,105290.0,0.00171363]
[1750717006035,6.32537032,105300.0,105290.0,0.00071363]
[1750717006292,6.44487698,105300.0,105290.0,0.00371363]
[1750717006529,6.66350112,105300.0,105290.0,0.00371363]
[1750717006762,6.03630566,105300.0,105290.0,0.00071363]
[1750717006997,6.03630566,105300.0,105290.0,0.00571363]
[1750717006998,6.17621248,105300.0,105290.0,0.00571363]
[1750717007225,0.94422186,105300.0,105290.0,0.00071363]
[1750717007460,0.54182186,105300.0,105290.0,0.00071363]
[1750717007679,0.57282186,105300.0,105290.0,0.00171363]
[1750717007927,0.54182186,105300.0,105290.0,0.00171363]
[1750717008376,0.09550186,105300.0,105290.0,0.00171363]
[1750717008597,0.34,105310.0,105290.0,0.00171363]
[1750717008598,0.21812,105310.0,105290.0,0.00171363]
[1750717008888,0.21812,105310.0,105300.0,0.20892668]
[1750717009112,0.07639784,105310.0,105290.0,0.00171363]
[1750717009332,0.33266,105320.0,105290.0,0.20116025]
[1750717009554,0.12740186,105320.0,105290.0,0.2296517]
[1750717009770,0.21808,105310.0,105290.0,0.23914783]
[1750717009993,0.2037997,105320.0,105300.0,0.20892668]
[1750717010215,0.1718997,105320.0,105310.0,0.18991548]
[1750717010431,0.21808,105320.0,105310.0,0.00949568]
[1750717010647,0.22008,105320.0,105310.0,0.19941116]
[1750717010867,0.22208,105320.0,105310.0,0.22789766]
[1750717011088,0.42952186,105320.0,105290.0,0.00071363]
[1750717011319,0.09550186,105310.0,105290.0,0.00071363]
[1750717011546,0.09550186,105310.0,105290.0,0.20016168]
[1750717011769,0.002,105320.0,105290.0,0.21915592]
[1750717012002,0.09550186,105320.0,105290.0,0.21915592]
[1750717012222,0.09550186,105320.0,105290.0,0.22865295]
[1750717012450,0.09550186,105320.0,105290.0,0.21915511]
[1750717012877,0.09550186,105320.0,105300.0,0.19942984]
[1750717013101,0.09550186,105320.0,105290.0,0.20965826]
[1750717013322,0.09550186,105320.0,105290.0,0.2001615]
[1750717013542,0.09550186,105320.0,105290.0,0.22865268]
[1750717013800,0.09550186,105320.0,105290.0,0.22865277]
[1750717014021,0.75389732,105320.0,105290.0,0.00071363]
[1750717014241,0.2030997,105320.0,105290.0,0.0102112]
[1750717014460,0.2030997,105320.0,105290.0,0.01970868]
[1750717014909,0.2030997,105320.0,105290.0,0.20965795]
[1750717015139,0.2030997,105320.0,105290.0,0.21915534]
[1750717015350,0.2030997,105320.0,105290.0,0.22865264]
[1750717015563,0.2030997,105320.0,105290.0,0.23814985]
[1750717015772,0.2030997,105320.0,105300.0,0.00949667]
[1750717015981,0.1718997,105320.0,105290.0,0.21915435]
[1750717016166,0.1718997,105320.0,105290.0,0.22770098]
[1750717016422,0.2340997,105320.0,105290.0,0.22770098]
[1750717016611,0.2340997,105320.0,105290.0,0.23719801]
[1750717016859,0.4519797,105320.0,105290.0,0.23719801]
[1750717017073,0.2340997,105320.0,105290.0,0.22770098]
[1750717017282,0.4804517,105320.0,105290.0,0.22865156]
[1750717017500,0.4804517,105320.0,105290.0,0.21915453]
[1750717017942,0.028552,105320.0,105300.0,0.21842063]
[1750717018167,1.20227667,105330.0,105300.0,0.00863604]
[1750717018401,1.32632753,105330.0,105300.0,0.00863604]
[1750717018620,1.32632753,105330.0,105300.0,0.21756252]
[1750717018842,1.32632753,105330.0,105300.0,0.22705874]
[1750717019060,1.32632753,105330.0,105300.0,0.21756252]
[1750717019276,1.10856753,105330.0,105300.0,0.20806612]
[1750717019491,0.64629948,105320.0,105300.0,0.00863604]
[1750717019708,0.31318186,105320.0,105300.0,0.20806401]
[1750717019921,0.31318186,105320.0,105300.0,0.01813271]
[1750717020415,0.31318186,105320.0,105300.0,0.21756086]
[1750717020643,0.31318186,105320.0,105300.0,0.00863604]
[1750717020870,0.12680186,105320.0,105300.0,0.00863604]
[1750717021088,0.2031997,105320.0,105300.0,0.00863604]
[1750717021545,0.12680186,105320.0,105300.0,0.00863604]
[1750717021771,6.07083062,105310.0,105300.0,0.00863604]
[1750717021997,6.20354299,105310.0,105300.0,0.00863604]
[1750717022223,6.23179399,105310.0,105300.0,0.00863604]
[1750717022451,6.02079927,105310.0,105300.0,0.00863604]
[1750717022689,6.02079927,105310.0,105290.0,0.00071363]
[1750717022690,0.34,105300.0,105290.0,0.00071363]
[1750717022906,0.43550186,105300.0,105290.0,0.00935835]
[1750717023138,1.05139948,105300.0,105290.0,0.00935835]
[1750717023563,0.50060186,105300.0,105290.0,0.00935835]
[1750717023778,1.05139948,105300.0,105290.0,0.00935835]
[1750717024036,0.43550186,105300.0,105290.0,0.00935835]
[1750717024258,0.31298186,105300.0,105290.0,0.02835322]
[1750717024480,0.22048,105310.0,105290.0,0.22780181]
[1750717024706,0.31598186,105310.0,105290.0,0.22780181]
[1750717024920,0.31598186,105310.0,105290.0,0.23729866]
[1750717025144,0.31598186,105310.0,105290.0,0.00935835]
[1750717025603,0.34868186,105310.0,105290.0,0.02664403]
[1750717026281,0.22244,105310.0,105290.0,0.23558685]
[1750717026562,0.38084186,105310.0,105290.0,0.02664403]
[1750717026785,0.37784186,105310.0,105290.0,0.03614151]
[1750717027004,0.37854186,105310.0,105290.0,0.02664403]
[1750717027222,0.31494186,105310.0,105290.0,0.0361416]
[1750717027444,0.31494186,105310.0,105300.0,0.20892677]
[1750717027445,0.002,105310.0,105300.0,0.20892677]
[1750717027662,0.02881905,105330.0,105320.0,0.20888692]
[1750717027911,0.21736,105340.0,105330.0,0.18987942]
[1750717028120,0.33138,105350.0,105330.0,0.22615277]
[1750717028351,0.23224782,105350.0,105330.0,0.2451399]
[1750717028561,0.39438186,105350.0,105330.0,0.24514008]
[1750717028777,0.73438186,105350.0,105330.0,0.24513936]
[1750717028998,0.39438186,105350.0,105330.0,0.01728568]
[1750717029228,0.94517948,105350.0,105330.0,0.20116477]
[1750717029456,0.67519705,105350.0,105330.0,0.23727786]
[1750717029673,0.67519705,105350.0,105330.0,0.20879513]
[1750717029674,0.34167943,105350.0,105330.0,0.20879513]
[1750717029888,0.89447705,105350.0,105330.0,0.21828892]
[1750717030104,0.89647705,105350.0,105330.0,0.21828901]
[1750717030334,0.89647705,105350.0,105330.0,0.22778262]
[1750717030549,0.89647705,105350.0,105330.0,0.21828901]
[1750717030762,0.86757948,105350.0,105330.0,0.23727632]
[1750717030976,0.56124,105350.0,105340.0,0.19935447]
[1750717031199,0.22124,105350.0,105340.0,0.19935447]
[1750717031412,0.22124,105350.0,105340.0,0.1898614]
[1750717032106,0.22124,105350.0,105330.0,0.00013883]
[1750717032107,0.86353948,105350.0,105330.0,0.00013883]
[1750717032349,0.31274186,105350.0,105330.0,0.2090047]
[1750717032589,0.31274186,105350.0,105340.0,0.005]
[1750717033050,0.86353948,105350.0,105340.0,0.005]
[1750717033283,0.94972061,105350.0,105340.0,0.001]
[1750717033949,0.94972061,105350.0,105290.0,0.24129023]
[1750717033950,0.4047,105340.0,105290.0,0.24129023]
[1750717034175,0.55079762,105310.0,105290.0,0.00024922]
[1750717034423,0.31254186,105300.0,105290.0,0.00024922]
[1750717035780,0.31268077,105300.0,105290.0,0.00024922]
[1750717035998,0.31268077,105300.0,105290.0,0.00424922]
[1750717036212,0.89487839,105300.0,105290.0,0.01224922]
[1750717036646,0.34408077,105300.0,105290.0,0.01224922]
[1750717037093,0.09564077,105300.0,105290.0,0.21169835]
[1750717037328,0.00013891,105300.0,105290.0,0.24018989]
[1750717037572,0.00013891,105300.0,105290.0,0.01224922]
[1750717037807,0.00013891,105300.0,105290.0,0.20220078]
[1750717038025,0.00013891,105300.0,105290.0,0.01224922]
[1750717038680,0.00013891,105300.0,105290.0,0.22119565]
[1750717039112,0.00013891,105300.0,105290.0,0.22984495]
[1750717039297,0.00013891,105300.0,105290.0,0.2583364]
[1750717040015,0.00013891,105300.0,105290.0,0.2496871]
[1750717040921,0.00013891,105300.0,105290.0,0.96058658]
[1750717041147,0.00013891,105300.0,105290.0,0.37698896]
[1750717041362,0.00013891,105300.0,105290.0,0.40978896]
[1750717041592,0.00013891,105300.0,105290.0,0.2814871]
[1750717041816,0.00013891,105300.0,105290.0,0.37698896]
[1750717042028,0.00013891,105300.0,105290.0,0.96058658]
[1750717042453,0.00013891,105300.0,105290.0,0.40978896]
[1750717042671,0.00013891,105300.0,105290.0,0.96058658]
[1750717042888,0.00013891,105300.0,105290.0,0.94858658]
[1750717043113,0.00013891,105300.0,105290.0,1.28858658]
[1750717043358,0.0027,105320.0,105300.0,0.05]
[1750717043563,0.0027,105320.0,105310.0,1.14374119]
[1750717043789,0.0027,105320.0,105310.0,0.39600357]
[1750717044017,0.0027,105320.0,105310.0,0.31390357]
[1750717044263,0.0027,105320.0,105310.0,0.21840171]
[1750717044481,0.0027,105320.0,105310.0,0.22789721]
[1750717044705,0.0027,105320.0,105310.0,0.20890657]
[1750717044924,0.0027,105320.0,105310.0,0.23489721]
[1750717045378,0.0027,105320.0,105310.0,0.014]
[1750717045621,0.0027,105320.0,105310.0,0.23240171]
[1750717046065,0.0027,105320.0,105310.0,0.32790357]
[1750717046289,0.0027,105320.0,105310.0,0.31840843]
[1750717046501,0.0027,105320.0,105310.0,0.23240171]
[1750717047174,0.16120186,105320.0,105310.0,0.22290657]
[1750717047399,0.0027,105320.0,105310.0,0.22290666]
[1750717047627,0.78839732,105320.0,105310.0,0.014]
[1750717047852,0.89840812,105320.0,105310.0,0.007]
[1750717048094,0.35454085,105310.0,105300.0,0.00046441]
[1750717048322,0.49850186,105310.0,105300.0,0.00046441]
[1750717048759,1.04929948,105310.0,105300.0,0.00046441]
[1750717049562,1.05229948,105310.0,105300.0,0.00046441]
[1750717049694,0.50150186,105310.0,105300.0,0.00046441]
[1750717049907,1.05229948,105310.0,105300.0,0.00046441]
[1750717050312,1.26873948,105310.0,105300.0,0.00046441]
[1750717051169,1.26973948,105310.0,105300.0,0.00046441]
[1750717051374,0.71894186,105310.0,105300.0,0.00046441]
[1750717051572,1.26973948,105310.0,105300.0,0.00046441]
[1750717052286,6.18367333,105310.0,105300.0,0.00046441]
[1750717053187,5.96723333,105310.0,105300.0,0.00046441]
[1750717053400,5.71327571,105310.0,105300.0,0.00046441]
[1750717053620,6.26407333,105310.0,105300.0,0.00046441]
[1750717053855,0.50250186,105310.0,105300.0,0.00046441]
[1750717054067,1.35009948,105310.0,105300.0,0.00046441]
[1750717054758,1.36464033,105310.0,105300.0,0.00046441]
[1750717055197,6.26403333,105310.0,105300.0,0.00046441]
[1750717055434,5.71323571,105310.0,105300.0,0.00046441]
[1750717055631,6.26403333,105310.0,105300.0,0.00046441]
[1750717055927,6.35950328,105310.0,105300.0,0.00046441]
[1750717056384,5.80870566,105310.0,105300.0,0.00046441]
[1750717056598,6.24949248,105310.0,105300.0,0.00046441]
[1750717056824,0.73630186,105310.0,105300.0,0.19039793]
[1750717057059,0.73630186,105310.0,105300.0,0.00046441]
[1750717057284,0.73630186,105310.0,105300.0,0.00996108]
[1750717057515,0.73630186,105310.0,105300.0,0.01945766]
[1750717057751,0.73630186,105310.0,105300.0,0.21888749]
[1750717057987,0.09950186,105310.0,105300.0,0.23787966]
[1750717058218,0.004,105310.0,105300.0,0.23787966]
[1750717058690,0.31454186,105310.0,105300.0,0.19989451]
[1750717058939,0.31154186,105310.0,105300.0,0.21888731]
[1750717059128,0.31154186,105310.0,105300.0,0.209391]
[1750717059459,0.31154186,105310.0,105300.0,0.23787993]
[1750717059736,0.31154186,105310.0,105300.0,0.21988767]
[1750717059958,0.31154186,105310.0,105300.0,0.22938344]
[1750717060171,0.31154186,105310.0,105300.0,0.22938353]
[1750717060392,0.31154186,105310.0,105300.0,0.00146441]
[1750717060898,0.92363948,105310.0,105300.0,0.00146441]
[1750717061129,0.92363948,105310.0,105300.0,0.00346441]
[1750717061370,6.17757333,105310.0,105300.0,0.00346441]
[1750717062691,6.20609751,105310.0,105300.0,0.00346441]
[1750717063146,6.20609751,105310.0,105300.0,0.00146441]
[1750717063370,6.27604328,105310.0,105300.0,0.00146441]
[1750717064080,6.27604328,105310.0,105300.0,0.00046441]
[1750717064301,6.28204328,105310.0,105300.0,0.00046441]
[1750717064895,6.28204328,105310.0,105260.0,0.19000382]
[1750717064896,0.07564085,105290.0,105260.0,0.19000382]
[1750717065097,0.39190186,105280.0,105260.0,0.19950401]